fUSD/lending_fUSD_20240720
["ID","MTS","AMOUNT","RATE_DAILY","PERIOD"]
[332687189,1721448659465,-1500.0,0.00024791,2]
[332687190,1721448659475,-248.92,0.000248,2]
[332687191,1721448659485,-256.78,0.000248,2]
[332687192,1721448659494,-300.0,0.00024834,2]
[332687193,1721448659504,-300.0,0.00024889,2]
[332687194,1721448659513,-151.39685258,0.00024904,2]
[332687195,1721448659523,-300.5,0.00024904,2]
[332687196,1721448659533,-1500.0,0.00024976,2]
[332687197,1721448659542,-1500.0,0.00024979,2]
[332687198,1721448659551,-300.0,0.00024999,2]
[332687199,1721448659637,-4319.740767,0.00025,2]
[332687200,1721448659646,-918202.94075562,0.00025,2]
[332687201,1721448659656,-23704.59410501,0.00025,20]
[332687202,1721448659665,-151.0,0.00025,7]
[332687203,1721448659674,-151.0,0.00025,7]
[332687204,1721448659683,-151.0,0.00025,7]
[332687205,1721448659692,-235.344986,0.00025,7]
[332687206,1721448659702,-151.0,0.00025,7]
[332687207,1721448659711,-151.0,0.00025,7]
[332687208,1721448659720,-719.318139,0.00025,7]
[332687209,1721448659729,-719.318139,0.00025,7]
[332687210,1721448659739,-175.63925,0.00025,7]
[332687211,1721448659748,-571.913984,0.00025,7]
[332687212,1721448659757,-175.63925,0.00025,7]
[332687213,1721448659767,-571.913984,0.00025,7]
[332687214,1721448659777,-381.718201,0.00025,7]
[332687215,1721448659786,-1413.092858,0.00025,7]
[332687216,1721448659795,-390.289859,0.00025,7]
[332687217,1721448659804,-1413.092858,0.00025,7]
[332687218,1721448659813,-390.289859,0.00025,7]
[332687219,1721448659822,-151.0,0.00025,7]
[332687220,1721448659831,-304.329082,0.00025,7]
[332687221,1721448659840,-151.0,0.00025,7]
[332687222,1721448659849,-304.329082,0.00025,7]
[332687223,1721448659858,-2243.146137,0.00025,7]
[332687224,1721448659867,-2720.201634,0.00025,7]
[332687225,1721448659876,-2243.146137,0.00025,7]
[332687226,1721448659886,-2720.201634,0.00025,7]
[332687227,1721448659895,-151.0,0.00025,7]
[332687228,1721448659904,-395.079714,0.00025,7]
[332687229,1721448659913,-698.497015,0.00025,7]
[332687230,1721448659922,-586.448156,0.00025,7]
[332687231,1721448659931,-395.079714,0.00025,7]
[332687232,1721448659940,-698.497015,0.00025,7]
[332687233,1721448659950,-586.448156,0.00025,7]
[332687234,1721448659959,-345.526166,0.00025,7]
[332687235,1721448659967,-345.526166,0.00025,7]
[332687236,1721448659977,-400.0,0.00025,2]
[332687237,1721448659986,-1500.0,0.00025005,2]
[332687238,1721448659995,-400.61370961,0.00025019,2]
[332687239,1721448660004,-800.0,0.00025019,2]
[332687240,1721448660013,-255.37830368,0.00025061,2]
[332687241,1721448660023,-235.25950452,0.00025479,2]
[332687242,1721448660032,-183.644152,0.00025527,2]
[332687243,1721448660041,-182.907287,0.00025527,2]
[332687244,1721448660050,-10434.51,0.00025786,2]
[332687245,1721448660060,-13141.48,0.00025786,2]
[332687246,1721448660069,-6958.66,0.00025786,2]
[332687247,1721448660078,-4417.99,0.00025786,2]
[332687248,1721448660087,-182.907287,0.00025952,2]
[332687249,1721448660096,-165.07,0.00026143,120]
[332687250,1721448660106,-183.644152,0.00026165,2]
[332687251,1721448660115,-150.0,0.00026301,2]
[332687252,1721448660124,-182.907287,0.00026378,2]
[332687253,1721448660134,-151.88,0.00026411,2]
[332687254,1721448660142,-150.0,0.00026411,2]
[332687255,1721448660151,-150.0,0.00026411,2]
[332687256,1721448660161,-150.7,0.00026411,2]
[332687257,1721448660170,-347.00704064,0.00026746,2]
[332687258,1721448660179,-2331.8171932,0.00026782,2]
[332687259,1721448660188,-184.5212314,0.00026782,2]
[332687260,1721448660197,-11189.6750752,0.00026782,2]
[332687261,1721448660206,-250.8476619,0.00026782,2]
[332687262,1721448660215,-669.7301941,0.00026782,2]
[332687263,1721448660225,-1014643.76531802,0.000268,2]
[332687264,1721448661171,-231.97934672,0.000138,2]
[332687265,1721448661181,-257.23252039,0.00014988,2]
[332687266,1721448661191,-347.00704064,0.00026746,2]
[332687267,1721448661200,-1654.40765306,0.000268,2]
[332687268,1721448661212,-6667.43999998,0.000268,2]
[332687269,1721448661253,-70583.19861396,0.000268,2]
[332687270,1721448661262,-262.499965,0.000268,7]
[332687271,1721448661271,-151.0,0.000268,7]
[332687272,1721448661283,-261.038677,0.000268,7]
[332687273,1721448661295,-151.0,0.000268,7]
[332687274,1721448661304,-151.0,0.000268,7]
[332687275,1721448661314,-719.318139,0.000268,7]
[332687276,1721448661324,-719.318139,0.000268,7]
[332687277,1721448661333,-175.63925,0.000268,7]
[332687278,1721448661342,-571.913984,0.000268,7]
[332687279,1721448661351,-175.63925,0.000268,7]
[332687280,1721448661361,-571.913984,0.000268,7]
[332687281,1721448661371,-381.718201,0.000268,7]
[332687282,1721448661380,-1413.092858,0.000268,7]
[332687283,1721448661389,-390.289859,0.000268,7]
[332687284,1721448661399,-1413.092858,0.000268,7]
[332687285,1721448661409,-390.289859,0.000268,7]
[332687286,1721448661419,-151.0,0.000268,7]
[332687287,1721448661429,-304.329082,0.000268,7]
[332687288,1721448661438,-152.502232,0.000268,7]
[332687289,1721448661447,-304.329082,0.000268,7]
[332687290,1721448661457,-2243.146137,0.000268,7]
[332687291,1721448661466,-1967.82153693,0.000268,7]
[332687292,1721448662208,-179.42,0.00013789,2]
[332687293,1721448662218,-1555.8465356,0.0001379,2]
[332687299,1721449182322,256.46,0.0002488,120]
[332687301,1721449528520,2203.72644611,0.000118,2]
[332687345,1721449831707,-339.39375913,0.00012666,2]
[332687346,1721449831717,-365.73129688,0.00012681,2]
[332687347,1721449831727,-334.11800582,0.0001358,2]
[332687348,1721449831736,-1613.00105918,0.000137,2]
[332687349,1721449831821,-248.60944082,0.000137,2]
[332687350,1721449831832,-11072.60722687,0.00013979,2]
[332687351,1721449831843,-391.26,0.00013979,2]
[332687352,1721449831853,-300.0,0.00013988,2]
[332687353,1721449831862,-10059.85836293,0.00013999,2]
[332687354,1721449831872,-345.72,0.00014,2]
[332687355,1721449831881,-345.72,0.00014,2]
[332687356,1721449831891,-345.72,0.00014,2]
[332687357,1721449831901,-209468.2332112,0.00014,2]
[332687358,1721449831913,-660.24264392,0.00014,2]
[332687360,1721449837661,-500.0,0.00014,2]
[332687361,1721449837834,-1508.38976455,0.00014,2]
[332687362,1721449837894,-1895.76530302,0.00014,2]
[332687371,1721449839674,-36741.2111118,0.00014,2]
[332687372,1721449839686,-15154.86879407,0.00014,2]
[332687373,1721449839846,-890.90712876,0.00014,2]
[332687405,1721449840484,-378.88915948,0.00014,2]
[332687408,1721449840496,-741.6458306,0.00014,2]
[332687414,1721449840558,-348.99956389,0.000139,2]
[332687416,1721449840570,-383.0020099,0.000139,2]
[332687418,1721449840581,-272.19330849,0.000139,2]
[332687420,1721449840591,-890.80669151,0.00014,2]
[332687422,1721449840602,-1947.9,0.00014,2]
[332687424,1721449840613,-1215.72104616,0.00014,2]
[332687426,1721449840624,-3520.40436357,0.00014,2]
[332687428,1721449840635,-2487.65849926,0.00014,2]
[332687430,1721449840646,-46849.94318308,0.00014,2]
[332687432,1721449843107,-944.14120199,0.000139,2]
[332687433,1721449843164,-60.05368028,0.000139,2]
[332687434,1721449843174,-377.04883373,0.00014,2]
[332687435,1721449843184,-334.73313,0.00014,2]
[332687436,1721449843196,-13187.1953566,0.00014,2]
[332687437,1721449845698,-281.09530141,0.00014,2]
[332687438,1721449845760,-3251.69928,0.00014,2]
[332687439,1721449845883,-5189.43412339,0.00014,2]
[332687440,1721449846057,-3351.37338218,0.00014,2]
[332687441,1721449846068,-1829.8319814,0.00014,2]
[332687442,1721449846174,-289.87054,0.00014,2]
[332687443,1721449846186,-389.87579624,0.00014,2]
[332687444,1721449846197,-2780.12700808,0.00014,2]
[332687447,1721449940490,-300.0,0.00013998,2]
[332687448,1721449940513,-500.0,0.00013999,2]
[332687449,1721449940536,-325.64521671,0.00013999,2]
[332687450,1721449940557,-500.0,0.00013999,2]
[332687451,1721449940580,-500.0,0.00013999,2]
[332687452,1721449940603,-500.0,0.00013999,2]
[332687453,1721449940627,-191.57227985,0.00013999,2]
[332687454,1721449940651,-500.0,0.00013999,2]
[332687455,1721449940674,-566.95369064,0.00013999,2]
[332687456,1721449940700,-3813.8057128,0.00014,2]
[332687457,1721449944673,-10000.0,0.00014,2]
[332687487,1721451031840,-371.69,0.00012842,2]
[332687489,1721451031849,-725.04776496,0.00013561,2]
[332687491,1721451031860,-34.00169477,0.00013561,2]
[332687492,1721451031871,-162.77397532,0.00013598,2]
[332687493,1721451031880,-638.03967608,0.0001372,2]
[332687494,1721451031890,-403.22465383,0.00013789,2]
[332687495,1721451031901,-28.58989846,0.00013789,2]
[332687496,1721451031911,-6033.3610252,0.00013859,3]
[332687497,1721451031920,-150.0,0.00013863,2]
[332687498,1721451031929,-300.0,0.00013898,2]
[332687499,1721451031939,-416.60245824,0.00013899,2]
[332687500,1721451032047,-8047.54421753,0.00013899,2]
[332687501,1721451032058,-1380.79392423,0.00013899,2]
[332687502,1721451032068,-135.45126339,0.00013899,2]
[332687503,1721451032079,-27.32271192,0.00013899,2]
[332687504,1721451032090,-2545.88935552,0.00013899,2]
[332687505,1721451032101,-4552.0992,0.000139,2]
[332687506,1721451032110,-1000.0,0.000139,2]
[332687507,1721451032118,-155.25250008,0.000139,2]
[332687508,1721451032127,-2008.2,0.00013999,2]
[332687509,1721451032138,-9742.69940198,0.00014,2]
[332687510,1721451032163,-585.71087622,0.00014,2]
[332687511,1721451032175,-4410.50407077,0.00014,2]
[332687512,1721451032190,-500.0,0.00014,2]
[332687513,1721451032200,-34085.332665,0.00014,2]
[332687514,1721451032362,-4869.87206032,0.00014,2]
[332687515,1721451032379,-531.61483492,0.00014,2]
[332687516,1721451032391,-5801.46363943,0.00014,2]
[332687517,1721451032402,-478.59396333,0.00014,2]
[332687518,1721451032413,-368543.86207143,0.00014,2]
[332687519,1721451032424,-535.511,0.00014,2]
[332687520,1721451032435,-1524.10623217,0.00014,2]
[332687521,1721451032449,-6928.544729,0.00014,2]
[332687522,1721451032461,-746.56164777,0.00014,2]
[332687523,1721451032471,-830.08689098,0.00014,2]
[332687524,1721451032482,-1836.39289519,0.00014,2]
[332687525,1721451032493,-628.29333227,0.00014,2]
[332687526,1721451032504,-479.84771151,0.00014,2]
[332687527,1721451032516,-1541.06894088,0.00014,2]
[332687528,1721451032527,-280.83854349,0.00014,2]
[332687542,1721451038283,-3666.92404621,0.00014,2]
[332687550,1721451039942,-296.13472727,0.00014,2]
[332687551,1721451040000,-4006.26,0.00014,2]
[332687552,1721451040012,-4283.45498458,0.00014,2]
[332687553,1721451040024,-465.23529992,0.00014,2]
[332687554,1721451040058,-333.81,0.00014,2]
[332687619,1721451043191,-431.81455229,0.00013789,2]
[332687620,1721451043201,-900.95935972,0.00014,2]
[332687661,1721451045982,-559.17935641,0.00014,2]
[332687662,1721451046200,-543.35692677,0.00014,2]
[332687663,1721451046211,-349.27002723,0.00014,2]
[332687664,1721451046224,-4396.38086928,0.00014,2]
[332687665,1721451046235,-251.0342802,0.00014,2]
[332687668,1721451446015,464.69,0.0001206,2]
[332687669,1721451570727,-291.0,0.00013332,2]
[332687671,1721451955570,441.45,0.00011824,2]
[332687761,1721452238735,-179.42,0.00013553,2]
[332687762,1721452238745,-164.43707999,0.00013693,2]
[332687763,1721452238785,-171.58292001,0.00013693,2]
[332687764,1721452238796,-6745.93,0.00013699,2]
[332687765,1721452238806,-613.51,0.00013699,2]
[332687766,1721452238816,-200.0,0.00013703,2]
[332687767,1721452238825,-599.58301876,0.0001372,2]
[332687768,1721452238835,-3000.0,0.0001386,2]
[332687769,1721452238845,-3387.45244203,0.000139,2]
[332687770,1721452238855,-648.64032597,0.000139,2]
[332687771,1721452238865,-1927.5656,0.000139,2]
[332687772,1721452238874,-1000.0,0.00013907,2]
[332687773,1721452238884,-256.52,0.00013932,2]
[332687774,1721452238893,-3022.1237921,0.0001398,2]
[332687775,1721452238903,-313.64420757,0.00013988,2]
[332687776,1721452238912,-34268.5710816,0.0001399,2]
[332687777,1721452238923,-1635.28002309,0.00014,2]
[332687778,1721452238934,-137908.44968793,0.00014,2]
[332687779,1721452238946,-1603.2000001,0.00014,2]
[332687780,1721452238959,-103440.0,0.00014,2]
[332687781,1721452238993,-336.01797,0.00014,2]
[332687783,1721452240169,-769.33262296,0.00014,2]
[332687784,1721452240181,-4774.39450496,0.00014,2]
[332687785,1721452240192,-7531.57161534,0.00014,2]
[332687786,1721452240226,-37053.37345565,0.00014,2]
[332687787,1721452240242,-1692.26100761,0.00014,2]
[332687788,1721452240254,-3040.21925122,0.00014,2]
[332687789,1721452240291,-907.65657637,0.00014,2]
[332687790,1721452240302,-1460.32639976,0.00014,2]
[332687791,1721452240315,-3410.49114972,0.00014,2]
[332687792,1721452240326,-425.73072942,0.00014,2]
[332687793,1721452240341,-43306.92508618,0.00014,2]
[332687794,1721452240371,-871.04087,0.00014,2]
[332687795,1721452240465,-81041.65048733,0.00014,2]
[332687796,1721452240475,-441.45,0.00014088,2]
[332687797,1721452240484,-855.77,0.00014192,2]
[332687798,1721452240494,-150.0,0.00014192,2]
[332687799,1721452240503,-150.0,0.00014192,2]
[332687800,1721452240513,-165.22,0.00014192,2]
[332687801,1721452240522,-150.0,0.00014192,2]
[332687802,1721452240531,-150.0,0.00014192,2]
[332687803,1721452240540,-165.22,0.00014192,2]
[332687804,1721452240550,-150.0,0.00014192,2]
[332687805,1721452240561,-150.0,0.00014192,2]
[332687806,1721452240570,-165.22,0.00014192,2]
[332687807,1721452240580,-150.0,0.00014192,2]
[332687808,1721452240592,-150.0,0.000142,2]
[332687809,1721452240601,-165.22,0.000142,2]
[332687810,1721452240611,-150.0,0.000142,2]
[332687811,1721452240620,-164.92,0.00014278,2]
[332687812,1721452240631,-194.39,0.00014292,2]
[332687813,1721452240640,-281.37497436,0.00014379,2]
[332687814,1721452240649,-300.79,0.00014466,2]
[332687815,1721452240658,-759.04945973,0.00014519,2]
[332687816,1721452240670,-171.845816,0.00014521,2]
[332687817,1721452240680,-10000.0,0.0001459,2]
[332687818,1721452240690,-3263.67343634,0.00014641,2]
[332687819,1721452240699,-205.16,0.00014656,2]
[332687820,1721452240709,-431.81455229,0.00014899,2]
[332687821,1721452240718,-225.5806762,0.000149,2]
[332687822,1721452240728,-208.34564475,0.000149,2]
[332687823,1721452240737,-464.66570795,0.000149,2]
[332687824,1721452240747,-1419.04512651,0.0001498,2]
[332687825,1721452240757,-28916.49513053,0.00014988,2]
[332687826,1721452240766,-380.81147695,0.00014988,2]
[332687827,1721452240776,-293.05660178,0.00014988,2]
[332687828,1721452240785,-4257.13537953,0.0001499,2]
[332687829,1721452240794,-166.46588499,0.00014999,2]
[332687830,1721452240805,-500.0,0.00014999,2]
[332687831,1721452240814,-500.0,0.00014999,2]
[332687832,1721452240823,-152.08643817,0.00014999,2]
[332687833,1721452240833,-150.79906168,0.00014999,2]
[332687834,1721452240842,-467.50352471,0.00014999,2]
[332687835,1721452240852,-414.92026533,0.00014999,2]
[332687836,1721452240861,-150.0,0.00014999,2]
[332687837,1721452240870,-151.06146857,0.00014999,7]
[332687838,1721452240879,-300.0,0.00014999,2]
[332687839,1721452240888,-300.0,0.00014999,2]
[332687840,1721452240898,-168.08075798,0.00015,2]
[332687841,1721452240908,-1927.95407047,0.00015,2]
[332687842,1721452240917,-3553128.83901272,0.00015,2]
[332687843,1721452240927,-1344.66304881,0.00015,2]
[332687844,1721452240936,-222531.69439475,0.00015,2]
[332687845,1721452240946,-3470.39127936,0.00015,2]
[332687846,1721452240956,-3973.24754201,0.00015,2]
[332687847,1721452240966,-150.0,0.00015,2]
[332687848,1721452240975,-200.0,0.00015,2]
[332687849,1721452240985,-200.0,0.00015,2]
[332687850,1721452240994,-200.0,0.00015,2]
[332687851,1721452241003,-194.39,0.00015006,2]
[332687852,1721452241013,-300.0,0.00015014,2]
[332687853,1721452241022,-345.869,0.00015062,2]
[332687854,1721452241031,-1072.0,0.00015062,2]
[332687855,1721452241041,-211.0,0.0001528,2]
[332687856,1721452241050,-150.442,0.0001528,2]
[332687857,1721452241060,-150.0,0.0001528,2]
[332687858,1721452241069,-1662.0,0.0001528,2]
[332687859,1721452241079,-1830.0,0.0001528,2]
[332687860,1721452241088,-1253.0,0.0001528,2]
[332687861,1721452241098,-150.0,0.0001528,2]
[332687862,1721452241107,-810.0,0.0001528,2]
[332687863,1721452241116,-620.0,0.0001528,2]
[332687864,1721452241126,-450.0,0.0001528,2]
[332687865,1721452241135,-445.0,0.0001528,2]
[332687866,1721452241144,-549.0,0.0001528,2]
[332687867,1721452241153,-150.0,0.0001528,2]
[332687868,1721452241163,-2381.0,0.0001528,2]
[332687869,1721452241172,-1993.0,0.0001528,2]
[332687870,1721452241182,-3282.0,0.0001528,2]
[332687871,1721452241191,-162.33,0.00015334,2]
[332687872,1721452241200,-171.845816,0.00015342,2]
[332687873,1721452241210,-173.7,0.00015485,2]
[332687874,1721452241219,-1000.0,0.00015645,2]
[332687875,1721452241228,-194.39,0.00015721,2]
[332687876,1721452241238,-646.0,0.000158,2]
[332687877,1721452241247,-1446.0,0.000158,2]
[332687878,1721452241256,-179.42,0.00015811,2]
[332687879,1721452241266,-208.22687303,0.0001587,2]
[332687880,1721452241276,-347.00704064,0.0001587,2]
[332687881,1721452241285,-10379.64446901,0.00015999,2]
[332687882,1721452241295,-5000.0,0.00016,2]
[332687883,1721452241304,-3387.45244195,0.00016089,2]
[332687884,1721452241315,-648.64032589,0.00016089,2]
[332687885,1721452241324,-216.52018517,0.00016159,2]
[332687886,1721452241334,-306.12153882,0.00016159,2]
[332687887,1721452241343,-171.845816,0.00016164,2]
[332687888,1721452241353,-441.45,0.00016352,2]
[332687889,1721452241362,-3000.0,0.0001636,2]
[332687890,1721452241371,-515.63653656,0.0001637,2]
[332687891,1721452241380,-400.68310094,0.0001637,2]
[332687892,1721452241389,-1000.0,0.0001637,2]
[332687893,1721452241398,-1000.0,0.0001637,2]
[332687894,1721452241408,-1000.0,0.0001637,2]
[332687895,1721452241418,-1000.0,0.0001637,2]
[332687896,1721452241427,-1000.0,0.0001637,2]
[332687897,1721452241436,-1000.0,0.0001637,2]
[332687898,1721452241446,-1000.0,0.0001637,2]
[332687899,1721452241455,-1000.0,0.0001637,2]
[332687900,1721452241465,-1000.0,0.0001637,2]
[332687901,1721452241474,-1000.0,0.0001637,2]
[332687902,1721452241483,-1000.0,0.0001637,2]
[332687903,1721452241493,-1000.0,0.0001637,2]
[332687904,1721452241502,-1000.0,0.0001637,2]
[332687905,1721452241512,-1000.0,0.0001637,2]
[332687906,1721452241521,-1000.0,0.0001637,2]
[332687907,1721452241531,-1000.0,0.0001637,2]
[332687908,1721452241540,-1000.0,0.0001637,2]
[332687909,1721452241549,-1000.0,0.0001637,2]
[332687910,1721452241558,-1000.0,0.0001637,2]
[332687911,1721452241567,-1000.0,0.0001637,2]
[332687912,1721452241576,-1000.0,0.0001637,2]
[332687913,1721452241587,-1000.0,0.0001637,2]
[332687914,1721452241597,-1000.0,0.0001637,2]
[332687915,1721452241606,-1000.0,0.0001637,2]
[332687916,1721452241616,-1000.0,0.0001637,2]
[332687917,1721452241625,-1000.0,0.0001637,2]
[332687918,1721452241635,-1000.0,0.0001637,2]
[332687919,1721452241645,-1000.0,0.0001637,2]
[332687920,1721452241655,-1000.0,0.0001637,2]
[332687921,1721452241665,-846.0,0.0001637,2]
[332687922,1721452241675,-194.39,0.00016435,2]
[332687923,1721452241684,-205.16,0.00016488,2]
[332687924,1721452241694,-3000.0,0.000167,2]
[332687925,1721452241703,-2254.84044189,0.000167,2]
[332687926,1721452241712,-281.37497433,0.00016739,2]
[332687927,1721452241722,-170.06794588,0.00016969,2]
[332687928,1721452241731,-171.845816,0.00016986,2]
[332687929,1721452241741,-150.0,0.00017,2]
[332687930,1721452241751,-200.0,0.00017,2]
[332687931,1721452241760,-194.39,0.0001715,2]
[332687932,1721452241769,-1000.0,0.00017383,2]
[332687933,1721452241779,-171.845816,0.00017808,2]
[332687934,1721452241788,-209.01836481,0.00018,2]
[332687935,1721452241797,-340.33985388,0.00018,4]
[332687936,1721452241807,-179.42,0.0001807,2]
[332687937,1721452241817,-3387.45244195,0.00018277,2]
[332687938,1721452241827,-648.64032589,0.00018277,2]
[332687939,1721452241836,-150.0,0.0001828,2]
[332687940,1721452241846,-1662.0,0.0001828,2]
[332687941,1721452241856,-1272.714,0.0001828,2]
[332687942,1721452242079,-1253.0,0.0001828,2]
[332687943,1721452242099,-810.0,0.0001828,2]
[332687944,1721452242109,-620.0,0.0001828,2]
[332687945,1721452242119,-450.0,0.0001828,2]
[332687946,1721452242128,-445.0,0.0001828,2]
[332687947,1721452242137,-549.0,0.0001828,2]
[332687948,1721452242147,-1489.252,0.0001828,2]
[332687949,1721452242157,-1993.0,0.0001828,2]
[332687950,1721452242167,-3282.0,0.0001828,2]
[332687951,1721452242177,-205.16,0.0001832,2]
[332687952,1721452242186,-441.45,0.00018616,2]
[332687953,1721452242196,-171.845816,0.0001863,2]
[332687954,1721452242206,-3000.0,0.0001886,2]
[332687955,1721452242215,-225.58067617,0.000189,2]
[332687956,1721452242226,-879.46848989,0.00019,2]
[332687957,1721452242235,-250.0,0.00019,2]
[332687958,1721452242245,-281.37497433,0.00019099,2]
[332687959,1721452242255,-1000.0,0.00019122,2]
[332687960,1721452242264,-776.0330552,0.0001917,2]
[332687961,1721452242274,-613.51,0.00019178,2]
[332687962,1721452242283,-171.845816,0.00019452,2]
[332687963,1721452242293,-155.0,0.000199,2]
[332687964,1721452242303,-328.80625544,0.0002,2]
[332687965,1721452242314,-189.18805852,0.0002,2]
[332687966,1721452242324,-155.0,0.0002,2]
[332687967,1721452242334,-1374.34506947,0.0002,2]
[332687968,1721452242344,-227.4651143,0.00020109,2]
[332687969,1721452242353,-205.16,0.00020152,2]
[332687970,1721452242363,-2029.02802325,0.000202,2]
[332687971,1721452242372,-171.845816,0.00020274,2]
[332687972,1721452242382,-179.42,0.00020329,2]
[332687973,1721452242392,-3387.45244195,0.00020466,2]
[332687974,1721452242401,-648.64032589,0.00020466,2]
[332687975,1721452242411,-2629.0,0.000208,2]
[332687976,1721452242420,-1000.0,0.0002086,2]
[332687977,1721452242430,-441.45,0.0002088,2]
[332687978,1721452242440,-2619.99331426,0.00021,2]
[332687979,1721452242450,-300.0,0.00021,2]
[332687980,1721452242460,-222.12636864,0.00021021,2]
[332687981,1721452242470,-171.845816,0.00021096,2]
[332687982,1721452242480,-740.246,0.0002128,2]
[332687983,1721452242490,-620.0,0.0002128,2]
[332687984,1721452242499,-450.0,0.0002128,2]
[332687985,1721452242509,-445.0,0.0002128,2]
[332687986,1721452242519,-1993.0,0.0002128,2]
[332687987,1721452242528,-3257.505,0.0002128,2]
[332687988,1721452242538,-3000.0,0.0002136,2]
[332687989,1721452242547,-180.0,0.00021397,2]
[332687990,1721452242558,-281.37497433,0.00021459,2]
[332687991,1721452242567,-182.23,0.00021644,2]
[332687992,1721452242577,-150.28,0.00021644,2]
[332687993,1721452242588,-153.0,0.00021644,2]
[332687994,1721452242599,-406.75102956,0.000217,2]
[332687995,1721452242609,-153.0,0.00021754,2]
[332687996,1721452242619,-153.0,0.00021754,2]
[332687997,1721452242631,-153.0,0.00021754,2]
[332687998,1721452242641,-153.0,0.00021754,2]
[332687999,1721452242651,-153.0,0.00021754,2]
[332688000,1721452242660,-153.0,0.00021754,2]
[332688001,1721452242671,-153.0,0.00021754,2]
[332688002,1721452242681,-153.0,0.00021754,2]
[332688003,1721452242690,-153.0,0.00021768,2]
[332688004,1721452242700,-153.0,0.00021768,2]
[332688005,1721452242711,-153.0,0.00021768,2]
[332688006,1721452242720,-153.0,0.00021768,2]
[332688007,1721452242730,-153.0,0.00021768,2]
[332688008,1721452242740,-153.0,0.00021768,2]
[332688009,1721452242750,-153.0,0.00021768,2]
[332688010,1721452242759,-153.0,0.00021781,2]
[332688011,1721452242769,-153.0,0.00021781,2]
[332688012,1721452242778,-153.0,0.00021781,2]
[332688013,1721452242787,-153.0,0.00021781,2]
[332688014,1721452242797,-153.0,0.00021781,2]
[332688016,1721452242809,-153.0,0.00021781,2]
[332688017,1721452242818,-153.0,0.00021781,2]
[332688018,1721452242828,-153.0,0.00021781,2]
[332688019,1721452242837,-153.0,0.00021795,2]
[332688020,1721452242847,-153.0,0.00021795,2]
[332688021,1721452242856,-153.0,0.00021795,2]
[332688022,1721452242866,-153.0,0.00021795,2]
[332688023,1721452242875,-153.0,0.00021795,2]
[332688024,1721452242885,-153.0,0.00021795,2]
[332688026,1721452242894,-153.0,0.00021795,2]
[332688028,1721452242903,-153.0,0.00021809,2]
[332688029,1721452242913,-153.0,0.00021809,2]
[332688030,1721452242922,-153.0,0.00021809,2]
[332688031,1721452242931,-153.0,0.00021809,2]
[332688032,1721452242941,-153.0,0.00021809,2]
[332688033,1721452242950,-153.0,0.00021809,2]
[332688034,1721452242960,-153.0,0.00021809,2]
[332688035,1721452242969,-153.0,0.00021809,2]
[332688036,1721452242979,-153.0,0.00021823,2]
[332688037,1721452242988,-153.0,0.00021823,2]
[332688038,1721452242997,-153.0,0.00021823,2]
[332688039,1721452243007,-153.0,0.00021823,2]
[332688040,1721452243016,-153.0,0.00021823,2]
[332688042,1721452243026,-166.9,0.00021918,2]
[332688044,1721452243037,-182.9,0.00021918,2]
[332688046,1721452243047,-153.49,0.00021918,2]
[332688048,1721452243058,-233.4,0.00021918,2]
[332688050,1721452243069,-171.845816,0.00021918,2]
[332688052,1721452243079,-205.16,0.00021984,2]